Workbook

Sheet стр.1_5
B1: ОТЧЕТ
B2: ОБ ИСПОЛНЕНИИ УЧРЕЖДЕНИЕМ ПЛАНА ЕГО ФИНАНСОВО-ХОЗЯЙСТВЕННОЙ ДЕЯТЕЛЬНОСТИ | ES2: КОДЫ
EQ3: Форма по ОКУД | ES3: 0503737
BI4: на 1 | BJ4: января | CE4: 20 | CI4: 16 | CL4: г. | EQ4: Дата
A5: Учреждение | AF5: МБДОУ-Хотынецкий детский сад "Алёнушка" | EQ5: по ОКПО | ES5: 23220031
A6: Обособленное подразделение
A7: Учредитель | EQ7: по ОКАТО | ES7: 54257551000
A8: Наименование органа, осуществля- | EQ8: по ОКПО
A9: ющего полномочия учредителя | AX9: Администрация Хотынецкого района Орловской области | EQ9: Глава по БК
A10: Вид финансового обеспечения (деятельности) | AX10: Сводный
A11: Периодичность: квартальная, годовая
A12: Единица измерения: руб. | EQ12: по ОКЕИ | ES12: 383
A13: 1. Доходы учреждения
A14: Наименование показателя | AX14: Код стро-ки | BD14: Код анали-тики | BK14: Утверждено плановых назначений | BY14: Исполнено плановых назначений | ES14: Не исполнено плановых назначений
BY15: через лицевые счета | CN15: через банковские счета | DD15: через кассу учреждения | DQ15: некассовыми операциями | ED15: итого
A16: 1 | AX16: 2 | BD16: 3 | BK16: 4 | BY16: 5 | CN16: 6 | DD16: 7 | DQ16: 8 | ED16: 9 | ES16: 10
A17: Доходы - всего | AX17: 010 | BK17: =BK21+BK36 -> 12776580 | BY17: =BY21+BY36 -> 10867261.79 | DD17: =DD21 -> 1909318.21 | ED17: =ED36+ED21 -> 12776580 | ES17: =BK17-ED17 -> 0
A18: Доходы от собственности | AX18: 030 | BD18: 120
A19: из них: | AX19: 101 | BD19: 120
A20: от аренды активов
A21: Доходы от оказания платных услуг (работ) | AX21: 040 | BD21: 130 | BK21: 1909318.21 | DD21: 1909318.21 | ED21: =BY21+DD21 -> 1909318.21 | ES21: =BK21-ED21 -> 0
A22: Доходы от штрафов, пеней, иных сумм принудительного изъятия | AX22: 050 | BD22: 140
A23: Безвозмездные поступления от бюджетов | AX23: 060 | BD23: 150
A24: в том числе: | AX24: 062 | BD24: 152
A25: поступления от наднациональных организаций и правительств иностранных государств
A26: поступления от международных финансовых организаций | AX26: 063 | BD26: 153
A27: Доходы от операций с активами | AX27: 090 | BD27: х
A28: в том числе: | AX28: 092 | BD28: 410
A29: от выбытий основных средств
A30: от выбытий нематериальных активов | AX30: 093 | BD30: 420
A31: от выбытий непроизведенных активов | AX31: 094 | BD31: 430
A32: от выбытий материальных запасов | AX32: 095 | BD32: 440
A33: от выбытий ценных бумаг, кроме акций | AX33: 096 | BD33: 620
A34: от выбытий акций | AX34: 097 | BD34: 630
A35: от выбытий иных финансовых активов | AX35: 098 | BD35: 650
A36: Прочие доходы | AX36: 100 | BD36: 180 | BK36: =BK37+BK39 -> 10867261.79 | BY36: =BY37+BY39+BY41 -> 10867261.79 | CN36: =CN37+CN39 -> 0 | ED36: =ED37+ED39+ED40+ED41 -> 10867261.79 | ES36: =BK36-ED36 -> 0
A37: из них: | AX37: 101 | BD37: 180 | BK37: 10812761.79 | BY37: 10812761.79 | ED37: =BY37+DD37 -> 10812761.79 | ES37: =BK37-ED37 -> 0
A38: субсидии на выполнение государственного (муниципального) задания
A39: субсидии на иные цели | AX39: 102 | BD39: 180 | BK39: 54500 | BY39: 54500 | ED39: =BY39 -> 54500 | ES39: =BK39-ED39 -> 0
A40: бюджетные инвестиции | AX40: 103 | BD40: 180 | ED40: =BY40 -> 0
A41: иные доходы | AX41: 104 | BD41: 180 | ED41: =BY41 -> 0 | ES41: =BK41-ED41 -> 0
AD42: 2. Расходы учреждения | FH42: Форма 0503737 с. 2
A44: Наименование показателя | AX44: Код стро-ки | BD44: Код анали-тики | BK44: Утверждено плановых назначений | BY44: Исполнено плановых назначений | ES44: Не исполнено плановых назначений
BY45: через лицевые счета | CN45: через банковские счета | DD45: через кассу учреждения | DQ45: некассовыми операциями | ED45: итого
A46: 1 | AX46: 2 | BD46: 3 | BK46: 4 | BY46: 5 | CN46: 6 | DD46: 7 | DQ46: 8 | ED46: 9 | ES46: 10
A47: Расходы - всего | AX47: 200 | BD47: х | BK47: =BK48+BK55+BK80+BK84+BK85 -> 12776580 | BY47: =BY48+BY55+BY80+BY84+BY85 -> 12776580 | DD47: =DD55+DD84+DD85 -> 0 | ED47: =ED48+ED55+ED80+ED84+ED85 -> 12776580 | ES47: =BK47-ED47 -> 0
A48: в том числе: | AX48: 160 | BD48: 210 | BK48: =BK50+BK52+BK54 -> 8889827.67 | BY48: =BY50+BY52+BY54 -> 8889827.67 | DD48: 0 | ED48: =ED50+ED52+ED54 -> 8889827.67 | ES48: =BK48-ED48 -> 0
A49: Оплата труда и начисления на выплаты по оплате труда
A50: в том числе: | AX50: 161 | BD50: 211 | BK50: 6915047.01 | BY50: 6915047.01 | ED50: =BY50 -> 6915047.01 | ES50: =BK50-ED50 -> 0
A51: заработная плата
A52: прочие выплаты | AX52: 162 | BD52: 212 | BK52: 0 | DD52: 0 | ED52: =BY52+DD52 -> 0 | ES52: =BK52-ED52 -> 0
B53: в т.ч.методлитература | ED53: =BZ53 -> 0 | ET53: =BL53-ED53 -> 0
A54: начисления на выплаты по оплате труда | AX54: 163 | BD54: 213 | BK54: 1974780.66 | BY54: 1974780.66 | ED54: =BY54 -> 1974780.66 | ES54: =BK54-ED54 -> 0
A55: Приобретение работ, услуг | AX55: 170 | BD55: 220 | BK55: =BK56+BK58+BK59+BK60+BK61+BK62 -> 1824158.9 | BY55: =BY56+BY58+BY59+BY61+BY62 -> 1824158.9 | DD55: =DD62 -> 0 | ED55: =ED56+ED58+ED59+ED61+ED62 -> 1824158.9 | ES55: =BK55-ED55 -> 0
A56: в том числе: | AX56: 171 | BD56: 221 | BK56: 46193.83 | BY56: 46193.83 | ED56: =BY56 -> 46193.83 | ES56: =BK56-ED56 -> 0
A57: услуги связи
A58: транспортные услуги | AX58: 172 | BD58: 222 | BK58: 0 | BY58: 0 | ED58: =BY58 -> 0 | ES58: =BK58-CN58 -> 0
A59: коммунальные услуги | AX59: 173 | BD59: 223 | BK59: 1584021.11 | BY59: 1584021.11 | ED59: =BY59 -> 1584021.11 | ES59: =BK59-ED59 -> 0
A60: арендная плата за пользование имуществом | AX60: 174 | BD60: 224
A61: работы, услуги по содержанию имущества | AX61: 175 | BD61: 225 | BK61: 162643.96 | BY61: 162643.96 | ED61: =BY61 -> 162643.96 | ES61: =BK61-ED61 -> 0
A62: прочие работы, услуги | AX62: 176 | BD62: 226 | BK62: 31300 | BY62: 31300 | ED62: =BY62+DD62 -> 31300 | ES62: =BK62-ED62 -> 0
A63: Обслуживание долговых обязательств | AX63: 190 | BD63: 230
A64: в том числе: | AX64: 191 | BD64: 231
A65: обслуживание долговых обязательств перед резидентами
A66: обслуживание долговых обязательств перед нерезидентами | AX66: 192 | BD66: 232
A67: Безвозмездные перечисления организациям | AX67: 210 | BD67: 240
A68: в том числе: | AX68: 211 | BD68: 241
A69: безвозмездные перечисления государственным и муниципальным организациям
A70: безвозмездные перечисления организациям, за исключением государственных и муниципальных организаций | AX70: 212 | BD70: 242
FH71: Форма 0503737 с. 3
A73: Наименование показателя | AX73: Код стро-ки | BD73: Код анали-тики | BK73: Утверждено плановых назначений | BY73: Исполнено плановых назначений | ES73: Не исполнено плановых назначений
BY74: через лицевые счета | CN74: через банковские счета | DD74: через кассу учреждения | DQ74: некассовыми операциями | ED74: итого
A75: 1 | AX75: 2 | BD75: 3 | BK75: 4 | BY75: 5 | CN75: 6 | DD75: 7 | DQ75: 8 | ED75: 9 | ES75: 10
A76: Безвозмездные перечисления бюджетам | AX76: 230 | BD76: 250
A77: в том числе: | AX77: 232 | BD77: 252
A78: перечисления наднациональным организациям и правительствам иностранных государств
A79: перечисления международным организациям | AX79: 233 | BD79: 253
A80: Социальное обеспечение | AX80: 240 | BD80: 260 | BK80: =BK81 -> 0 | BY80: 0 | ED80: 0 | ES80: =BK80-ED80 -> 0
A81: в том числе: | AX81: 242 | BD81: 262 | BK81: 0 | BY81: 0 | ED81: 0 | ES81: =BK81-ED81 -> 0
A82: пособия по социальной помощи населению
A83: пенсии, пособия, выплачиваемые организациями сектора государственного управления | AX83: 243 | BD83: 263
A84: Прочие расходы | AX84: 250 | BD84: 290 | BK84: 91475.22 | BY84: 91475.22 | ED84: =BY84+DD84 -> 91475.22 | ES84: =BK84-ED84 -> 0
A85: Расходы по приобретению нефинансовых активов | AX85: 260 | BD85: 300 | BK85: =BK86+BK90 -> 1971118.21 | BY85: =BY86+BY90 -> 1971118.21 | CN85: =CN86+CN90 -> 0 | DD85: =DD90 -> 0 | ED85: =ED86+ED90 -> 1971118.21 | ES85: =BK85-ED85 -> 0
A86: в том числе: | AX86: 261 | BD86: 310 | BK86: 4500 | BY86: 4500 | ED86: =BY86 -> 4500 | ES86: =BK86-ED86 -> 0
A87: основных средств
A88: нематериальных активов | AX88: 262 | BD88: 320
A89: непроизведенных активов | AX89: 263 | BD89: 330
A90: материальных запасов | AX90: 264 | BD90: 340 | BK90: 1966618.21 | BY90: 1966618.21 | ED90: =BY90+DD90 -> 1966618.21 | ES90: =BK90-ED90 -> 0
B91: в т.ч.питание | BL91: 1684852.32 | BY91: 1684852.32 | EE91: =BY91 -> 1684852.32
A92: Расходы по приобретению финансовых активов | AX92: 270 | BD92: 500
A93: из них: | AX93: 271 | BD93: 520
A94: ценных бумаг, кроме акций
A95: акций и иных форм участия в капитале | AX95: 272 | BD95: 530
A96: иных финансовых активов | AX96: 273 | BD96: 550
CN97: 37134.23
A98: Результат исполнения (дефицит/профицит) | AX98: 450 | BD98: х | CN98: =ED17-ED47 -> 0 | ED98: =ED17-ED47 -> 0 | ES98: х
ED99: 20381.26
AD100: 3. Источники финансирования дефицита средств учреждения | FH100: Форма 0503737 с. 4
A102: Наименование показателя | AX102: Код стро-ки | BD102: Код анали-тики | BK102: Утверждено плановых назначений | BY102: Исполнено плановых назначений | ES102: Не исполнено плановых назначений
BY103: через лицевые счета | CN103: через банковские счета | DD103: через кассу учреждения | DQ103: некассовыми операциями | ED103: итого
A104: 1 | AX104: 2 | BD104: 3 | BK104: 4 | BY104: 5 | CN104: 6 | DD104: 7 | DQ104: 8 | ED104: 9 | ES104: 10
A105: Источники финансирования дефицита средств - всего (стр. 520 + стр. 620 + стр. 700 + стр. 820 + стр. 830) | AX105: 500
A106: в том числе: | AX106: 520
A107: Внутренние источники
A108: из них: | AX108: 521 | BD108: 171
A109: положительная курсовая разница
A110: отрицательная курсовая разница | AX110: 522 | BD110: 171
A111: поступления средств учреждения с депозитов | AX111: 523 | BD111: 510
A112: размещение средств учреждения на депозиты | AX112: 524 | BD112: 610
A113: поступления от погашения займов (ссуд) | AX113: 525 | BD113: 640
A114: выплаты по предоставлению займов (ссуд) | AX114: 526 | BD114: 540
A115: поступления заимствований от резидентов | AX115: 527 | BD115: 710
A116: погашение заимствований от нерезидентов | AX116: 528 | BD116: 810
A117: Внешние источники | AX117: 620
A118: из них: | AX118: 621 | BD118: 171
A119: положительная курсовая разница
A120: отрицательная курсовая разница | AX120: 622 | BD120: 171
A121: поступления заимствований от резидентов | AX121: 625 | BD121: 720
A122: погашение заимствований от нерезидентов | AX122: 626 | BD122: 820
A123: Изменение остатков средств | AX123: 700 | BD123: х
A124: увеличение остатков средств, всего | AX124: 710 | BD124: 510 | ES124: х
A125: уменьшение остатков средств, всего | AX125: 720 | BD125: 610 | ES125: х
A126: Изменение остатков по внутренним оборотам средств учреждения | AX126: 730 | BD126: х
A127: в том числе: | AX127: 731 | BD127: 510
A128: увеличение остатков средств учреждения
A129: уменьшение остатков средств учреждения | AX129: 732 | BD129: 610
FH130: Форма 0503737 с. 5
A132: Наименование показателя | AX132: Код стро-ки | BD132: Код анали-тики | BK132: Утверждено плановых назначений | BY132: Исполнено плановых назначений | ES132: Не исполнено плановых назначений
BY133: через лицевые счета | CN133: через банковские счета | DD133: через кассу учреждения | DQ133: некассовыми операциями | ED133: итого
A134: 1 | AX134: 2 | BD134: 3 | BK134: 4 | BY134: 5 | CN134: 6 | DD134: 7 | DQ134: 8 | ED134: 9 | ES134: 10
A135: Изменение остатков по внутренним расчетам | AX135: 820 | BD135: х
A136: в том числе: | AX136: 821
A137: увеличение остатков по внутренним расчетам (Кт 030404510)
A138: уменьшение остатков по внутренним расчетам (Дт 030404610) | AX138: 822
A139: Изменение остатков расчетов по внутренним привлечениям средств | AX139: 830 | BD139: х
A140: в том числе: | AX140: 831
A141: увеличение расчетов по внутреннему привлечению остатков средств (Кт 030406000)
A142: уменьшение расчетов по внутреннему привлечению остатков средств (Дт 030406000) | AX142: 832
A145: Руководитель | AM145: Алехина С.В. | CN145: Руководитель финансово-
N146: (подпись) | AM146: (расшифровка подписи) | CN146: экономической службы
DK147: (подпись) | EC147: (расшифровка подписи)
A148: Главный бухгалтер | AM148: Тимошина Л.П.
R149: (подпись) | AM149: (расшифровка подписи)
BM152: Централизованная бухгалтерия
CT153: (наименование, ОГРН, ИНН, КПП, местонахождение)
BM154: Руководитель
BM155: (уполномоченное лицо)
CI156: (должность) | DL156: (подпись) | EG156: (расшифровка подписи)
A158: Исполнитель | N158: Главный бухгалтер | BJ158: Тимошина Л.П. | CN158: 2-13-03
N159: (должность) | AP159: (подпись) | BJ159: (расшифровка подписи) | CN159: (телефон, e-mail)
A161: " | C161: 11 | F161: " | I161: января | Y161: 20 | AC161: 16 | AF161: г.
